bitfinex/quotes_SOLUSD_20250217
["timestamp","ask_amount","ask_price","bid_price","bid_amount"]
[1739765229375,9.96095905,186.4,186.37,5.03]
[1739765230748,9.96095905,186.39,186.37,5.03]
[1739765230975,15.32595905,186.39,186.37,5.03]
[1739765231165,9.96095905,186.38,186.37,5.03]
[1739765231346,39.96095905,186.38,186.37,5.03]
[1739765232045,176.46095905,186.38,186.37,5.03]
[1739765233146,181.82625905,186.38,186.37,5.03]
[1739765234082,151.82625905,186.38,186.37,5.03]
[1739765235069,181.82625905,186.38,186.37,5.03]
[1739765236768,189.88243433,186.38,186.37,5.03]
[1739765237165,191.88243433,186.38,186.37,5.03]
[1739765237761,50.0,186.36,186.35,0.03]
[1739765238071,20.0,186.27,186.23,6.2125]
[1739765238274,9.96095905,186.26,186.23,6.2125]
[1739765238576,9.96095905,186.27,186.23,6.2125]
[1739765238983,9.96095905,186.25,186.19,9.96095905]
[1739765239153,9.96095905,186.25,186.15,5.3719]
[1739765239154,151.83025905,186.25,186.15,5.3719]
[1739765239360,9.96095905,186.22,186.15,9.96095905]
[1739765239754,9.96095905,186.21,186.15,9.96095905]
[1739765239962,146.46095905,186.24,186.17,9.96095905]
[1739765241377,146.46095905,186.24,186.18,9.96095905]
[1739765241981,146.46095905,186.24,186.17,9.96095905]
[1739765242158,9.96095905,186.23,186.17,9.96095905]
[1739765242963,9.96095905,186.23,186.16,15.33255905]
[1739765243660,9.96095905,186.23,186.17,9.96095905]
[1739765245185,9.96095905,186.24,186.18,9.96095905]
[1739765245681,9.96095905,186.24,186.18,15.33185905]
[1739765245884,9.96095905,186.26,186.2,9.96095905]
[1739765246087,9.96095905,186.26,186.18,5.3709]
[1739765246088,146.46095905,186.32,186.25,9.96095905]
[1739765246272,122.26095905,186.33,186.26,9.96095905]
[1739765246781,92.26095905,186.33,186.26,9.96095905]
[1739765247157,146.46095905,186.34,186.28,9.96095905]
[1739765247359,136.5,186.34,186.29,9.96095905]
[1739765247593,39.96095905,186.35,186.29,9.96095905]
[1739765247765,40.02395905,186.35,186.29,15.32885905]
[1739765248279,9.96095905,186.33,186.27,15.32935905]
[1739765248481,9.96095905,186.32,186.26,9.96095905]
[1739765248782,9.96095905,186.3,186.24,15.33005905]
[1739765251383,9.96095905,186.33,186.27,9.96095905]
[1739765252890,9.96095905,186.33,186.27,15.32945905]
[1739765253591,9.96095905,186.33,186.27,9.96095905]
[1739765253897,9.96095905,186.32,186.26,9.96095905]
[1739765254579,9.96095905,186.31,186.25,9.96095905]
[1739765254787,9.96095905,186.3,186.24,9.96095905]
[1739765256270,9.96095905,186.31,186.25,9.96095905]
[1739765256917,9.96095905,186.3,186.24,9.96095905]
[1739765257994,39.96095905,186.29,186.21,7.7194]
[1739765258192,9.96095905,186.28,186.22,9.96095905]
[1739765259167,9.96095905,186.28,186.22,15.33085905]
[1739765259567,39.96095905,186.29,186.23,9.96095905]
[1739765260399,39.96095905,186.29,186.24,0.03]
[1739765262993,9.96095905,186.3,186.24,9.99095905]
[1739765263193,181.82835905,186.31,186.25,9.96095905]
[1739765263605,9.96095905,186.3,186.24,9.99095905]
[1739765263899,9.96095905,186.29,186.24,0.03]
[1739765264202,9.96095905,186.3,186.24,9.99095905]
[1739765266214,9.96095905,186.28,186.24,0.03]
[1739765266699,9.96095905,186.27,186.24,0.03]
[1739765268800,9.96095905,186.25,186.24,0.03]
[1739765270486,15.33005905,186.25,186.24,0.03]
[1739765270888,30.0,186.27,186.24,0.03]
[1739765271091,9.96095905,186.26,186.24,0.03]
[1739765271585,136.5,186.28,186.24,0.03]
[1739765272501,146.46095905,186.28,186.24,0.03]
[1739765273007,9.96095905,186.25,186.24,0.03]
[1739765273181,39.96095905,186.25,186.24,0.03]
[1739765274482,45.33005905,186.25,186.24,0.03]
[1739765279115,15.33005905,186.25,186.24,0.03]
[1739765280112,82.3,186.27,186.24,0.03]
[1739765280500,87.6685,186.27,186.24,0.03]
[1739765280918,97.62945905,186.27,186.24,0.03]
[1739765281104,9.96095905,186.26,186.24,0.03]
[1739765281719,15.32985905,186.26,186.24,0.03]
[1739765282418,5.3689,186.26,186.24,0.03]
[1739765283498,136.5,186.29,186.24,0.03]
[1739765283717,15.32895905,186.29,186.24,0.03]
[1739765286625,22.00422123,186.3,186.24,11.59785905]
[1739765286830,16.63652123,186.3,186.25,9.96095905]
[1739765287304,16.63652123,186.3,186.26,9.96095905]
[1739765290518,16.63652123,186.3,186.25,9.96095905]
[1739765290726,22.00412123,186.3,186.24,11.59785905]
[1739765291035,31.96508028,186.3,186.24,11.59785905]
[1739765291233,9.96095905,186.27,186.24,1.6369]
[1739765291431,9.96095905,186.27,186.24,0.03]
[1739765292125,30.0,186.29,186.24,0.03]
[1739765292126,9.96095905,186.26,186.24,0.03]
[1739765292738,9.96095905,186.25,186.24,0.03]
[1739765294039,176.46095905,186.25,186.24,0.03]
[1739765294331,122.26095905,186.25,186.24,0.03]
[1739765294714,127.63005905,186.25,186.24,0.03]
[1739765295941,30.0,186.21,186.18,0.03]
[1739765296147,9.96095905,186.19,186.18,0.03]
[1739765296439,29.96095905,186.2,186.18,0.03]
[1739765297935,35.33145905,186.2,186.18,0.03]
[1739765298531,9.96095905,186.19,186.18,0.03]
[1739765299132,25.3705,186.2,186.18,0.03]
[1739765299133,35.33145905,186.2,186.18,0.03]
[1739765299329,29.96095905,186.2,186.18,0.03]
[1739765299637,20.0,186.19,186.18,0.03]
[1739765300016,35.33175905,186.19,186.18,0.03]
[1739765301318,15.33175905,186.19,186.18,0.03]
[1739765301720,25.3708,186.19,186.18,0.03]
[1739765302223,35.33175905,186.19,186.18,0.03]
[1739765307145,25.3708,186.19,186.18,0.03]
[1739765308148,35.33175905,186.19,186.18,0.03]
[1739765315939,20.0,186.19,186.18,0.03]
[1739765316338,25.3708,186.19,186.18,0.03]
[1739765319446,20.0,186.19,186.18,0.03]
[1739765319753,25.3708,186.19,186.18,0.03]
[1739765320050,35.33175905,186.19,186.18,0.03]
[1739765323973,46.95445905,186.19,186.18,0.03]
[1739765324148,53.31659421,186.19,186.18,0.03]
[1739765324355,55.40970171,186.19,186.18,0.03]
[1739765327958,50.0,186.16,186.08,9.96095905]
[1739765328147,9.96095905,186.15,186.08,9.96095905]
[1739765328353,9.96095905,186.14,186.08,9.96095905]
[1739765330374,15.33335905,186.14,186.08,9.96095905]
[1739765331250,15.33335905,186.14,186.08,9.99095905]
[1739765331671,5.3724,186.14,186.08,15.36485905]
[1739765331873,15.33295905,186.15,186.08,9.99095905]
[1739765333775,9.96095905,186.14,186.08,9.99095905]
[1739765333985,15.33335905,186.14,186.08,9.99095905]
[1739765336288,15.33335905,186.14,186.08,15.36485905]
[1739765336790,15.33335905,186.14,186.08,9.99095905]
[1739765338383,5.3724,186.14,186.09,9.96095905]
[1739765340074,20.0,186.16,186.11,9.96095905]
[1739765340280,136.5,186.17,186.13,16.46995905]
[1739765340589,0.063,186.18,186.14,9.96095905]
[1739765340989,10.02395905,186.18,186.13,16.46995905]
[1739765341689,15.39505905,186.18,186.13,16.46995905]
[1739765342500,15.39505905,186.18,186.13,6.509]
[1739765342877,10.02395905,186.18,186.13,6.509]
[1739765343179,10.02395905,186.18,186.13,16.46995905]
[1739765343691,0.063,186.18,186.13,16.46995905]
[1739765344485,10.02395905,186.18,186.13,16.46995905]
[1739765345203,10.02395905,186.18,186.13,6.509]
[1739765347902,0.063,186.18,186.13,16.46995905]
[1739765348303,0.063,186.18,186.14,9.96095905]
[1739765348489,0.063,186.18,186.15,9.96095905]
[1739765348996,0.063,186.18,186.14,9.96095905]
[1739765349526,0.063,186.18,186.13,6.509]
[1739765349802,15.39515905,186.18,186.13,6.509]
[1739765352725,5.4342,186.18,186.13,16.46995905]
[1739765353628,5.4342,186.18,186.12,1.5155]
[1739765353923,39.96095905,186.13,186.08,0.03]
[1739765354222,9.96095905,186.1,186.08,0.03]
[1739765354627,9.96095905,186.09,186.08,0.03]
[1739765355220,39.96095905,186.09,186.08,0.03]
[1739765356232,45.33465905,186.09,186.08,0.03]
[1739765357319,39.96095905,186.09,186.08,0.03]
[1739765357521,45.33465905,186.09,186.08,0.03]
[1739765359003,45.33465905,186.09,185.98,1.5876]
[1739765359004,30.0,186.04,185.98,1.5876]
[1739765359207,9.96095905,186.01,185.98,1.5876]
[1739765359512,9.96095905,186.03,185.98,1.5876]
[1739765361015,29.96095905,186.06,186.0,9.96095905]
[1739765361334,59.96095905,186.06,185.99,9.96095905]
[1739765362431,59.96095905,186.06,185.99,15.33735905]
[1739765363798,9.96095905,186.05,185.99,15.33735905]
[1739765365409,141.8743,186.07,186.01,9.96095905]
[1739765365410,146.46095905,186.07,186.01,9.96095905]
[1739765365716,146.46095905,186.07,186.01,15.33675905]
[1739765366138,136.5,186.07,186.02,9.96095905]
[1739765366323,39.96095905,186.08,186.02,9.96095905]
[1739765366637,39.96095905,186.08,186.02,15.33665905]
[1739765366937,9.96095905,186.09,186.03,9.96095905]
[1739765367323,9.96095905,186.1,186.04,9.96095905]
[1739765367717,9.96095905,186.09,186.03,9.96095905]
[1739765367920,146.46095905,186.11,186.05,9.96095905]
[1739765368119,151.83375905,186.13,186.06,9.96095905]
[1739765368320,9.96095905,186.12,186.06,9.96095905]
[1739765368537,39.96095905,186.12,186.06,9.96095905]
[1739765368741,39.96095905,186.12,186.06,15.33545905]
[1739765369037,9.96095905,186.11,186.06,5.3745]
[1739765371349,9.96095905,186.11,186.05,11.48885905]
[1739765371521,9.96095905,186.11,186.02,21.65675905]
[1739765371522,9.96095905,186.08,186.02,21.65675905]
[1739765371728,9.96095905,186.07,186.02,6.3201]
[1739765371914,9.96095905,186.07,186.02,11.6956]
[1739765373223,9.96095905,186.07,186.02,6.3201]
[1739765375824,9.96095905,186.08,186.02,16.28105905]
[1739765376247,15.33465905,186.09,186.02,16.28105905]
[1739765376437,30.0,186.08,186.02,16.28105905]
[1739765376637,39.96095905,186.08,186.02,16.28105905]
[1739765377351,45.33495905,186.08,186.02,16.28105905]
[1739765380146,45.33495905,186.08,186.02,16.31105905]
[1739765384065,9.96095905,186.07,186.02,6.3501]
[1739765388160,45.33495905,186.08,186.02,16.31105905]
[1739765388962,39.96095905,186.08,186.02,21.68675905]
[1739765389339,30.0,186.08,186.02,21.68675905]
[1739765390069,35.374,186.08,186.02,16.31105905]
[1739765390651,45.33495905,186.08,186.02,16.31105905]
[1739765391268,9.96095905,186.07,186.02,6.3501]
[1739765392364,45.33495905,186.08,186.02,16.31105905]
[1739765392868,9.96095905,186.07,186.02,0.03]
[1739765393251,9.96095905,186.06,186.02,0.03]
[1739765393866,15.33535905,186.07,186.02,0.03]
[1739765398482,15.33555905,186.06,186.02,0.03]
[1739765398686,9.96095905,186.05,186.02,0.03]
[1739765398858,9.96095905,186.04,186.02,0.03]
[1739765399063,9.96095905,186.03,186.02,0.03]
[1739765400388,15.33635905,186.03,186.02,0.03]
[1739765404078,9.96095905,186.03,186.02,0.03]
[1739765404269,176.46095905,186.04,186.02,0.03]
[1739765404468,136.5,186.04,186.02,0.03]
[1739765404781,45.33555905,186.06,186.02,0.03]
[1739765404988,9.96095905,186.03,186.02,0.03]
[1739765405372,15.33635905,186.03,186.02,0.03]
[1739765407275,20.0,186.03,186.02,0.03]
[1739765407592,35.33635905,186.03,186.02,0.03]
[1739765412770,9.96095905,186.05,186.02,0.03]
[1739765412969,146.46095905,186.06,186.02,0.03]
[1739765413284,136.5,186.06,186.02,0.03]
[1739765413466,18.37045377,186.07,186.02,0.03]
[1739765413467,23.74485377,186.07,186.02,0.03]
[1739765414096,9.96095905,186.05,186.02,0.03]
[1739765414264,9.96095905,186.04,186.02,0.03]
[1739765415866,30.0,186.06,186.02,0.03]
[1739765415867,39.96095905,186.06,186.02,0.03]
[1739765416098,15.33535905,186.07,186.02,0.03]
[1739765416705,9.96095905,186.06,186.02,0.03]
[1739765417372,9.96095905,186.03,186.02,0.03]
[1739765418389,15.33635905,186.03,186.02,0.03]
[1739765419878,9.96095905,186.03,186.02,0.03]
[1739765420200,15.33635905,186.03,186.02,0.03]
[1739765420905,20.0,186.03,186.02,0.03]
[1739765421207,15.33525905,186.07,186.02,0.03]
[1739765421579,9.96095905,186.05,186.02,0.03]
[1739765421887,15.33565905,186.06,186.02,0.03]
[1739765428794,9.96095905,186.05,186.02,0.03]
[1739765428980,9.96095905,186.06,186.02,0.03]
[1739765429499,20.0,186.05,186.02,0.03]
[1739765432113,0.063,186.08,186.03,17.88045905]
[1739765432488,15.39795905,186.08,186.03,7.9195]
[1739765435093,9.96095905,186.04,186.02,0.03]
[1739765435399,9.96095905,186.03,186.02,0.03]
[1739765438317,9.96095905,186.04,186.02,0.03]
[1739765438618,9.96095905,186.03,186.02,0.03]
[1739765439122,9.96095905,186.04,186.02,0.03]
[1739765440624,9.96095905,186.05,186.02,0.03]
[1739765440913,30.48746671,186.08,186.02,0.03]
[1739765441109,20.0,186.05,186.02,9.99095905]
[1739765441710,20.0,186.05,186.02,0.03]
[1739765443095,9.96095905,186.04,186.02,0.03]
[1739765444001,20.0,186.05,186.02,0.03]
[1739765446126,15.33525905,186.07,186.02,0.03]
[1739765446926,0.063,186.08,186.03,9.96095905]
[1739765447107,0.063,186.08,186.05,9.96095905]
[1739765448202,0.063,186.08,186.05,15.33575905]
[1739765449907,0.063,186.08,186.06,9.96095905]
[1739765450113,0.063,186.08,186.07,9.96095905]
[1739765450619,0.063,186.08,186.06,22.95205905]
[1739765450829,0.063,186.08,186.06,17.57765905]
[1739765452518,0.063,186.08,186.06,7.6167]
[1739765453903,0.063,186.08,186.06,12.9912]
[1739765457135,0.063,186.08,186.06,7.6167]
[1739765457707,0.063,186.08,186.06,12.9912]
[1739765458041,0.063,186.08,186.06,22.95215905]
[1739765461431,0.063,186.08,186.06,17.57765905]
[1739765462637,0.063,186.08,186.06,22.95215905]
[1739765463113,0.063,186.08,186.06,17.57765905]
[1739765463441,0.063,186.08,186.03,15.33615905]
[1739765464331,0.063,186.08,186.04,9.96095905]
[1739765465522,0.063,186.08,186.06,9.96095905]
[1739765466949,0.063,186.08,186.05,28.74740758]
[1739765467248,0.063,186.08,186.04,15.33605905]
[1739765468348,0.063,186.08,186.05,28.74740758]
[1739765469224,0.063,186.08,186.07,23.37280758]
[1739765470350,0.063,186.08,186.07,28.74710758]
[1739765471948,0.063,186.08,186.04,9.96095905]
[1739765472165,0.063,186.08,186.03,9.99095905]
[1739765472352,10.02395905,186.08,186.03,5.4054]
[1739765472528,9.96095905,186.07,186.03,0.03]
[1739765475157,9.96095905,186.05,186.03,0.03]
[1739765476658,9.96095905,186.04,186.03,0.03]
[1739765480449,9.96095905,186.04,185.98,12.92775905]
[1739765480656,9.96095905,186.03,185.98,5.3768]
[1739765481158,9.96095905,186.04,185.98,15.33775905]
[1739765482458,9.96095905,186.04,185.98,9.96095905]
[1739765483362,9.96095905,186.03,185.97,17.69165905]
[1739765483573,9.96095905,186.03,185.97,23.06875905]
[1739765484441,9.96095905,186.04,185.98,9.96095905]
[1739765484944,9.96095905,186.04,185.98,8.46095905]
[1739765485481,9.96095905,186.04,185.98,12.83765905]
[1739765485938,9.96095905,186.02,185.97,11.6078]
[1739765486143,9.96095905,186.02,185.96,27.75020758]
[1739765486663,9.96095905,186.01,185.96,5.3774]
[1739765486867,9.96095905,186.02,185.96,15.33835905]
[1739765487645,9.96095905,186.03,185.97,9.96095905]
[1739765488644,9.96095905,186.03,185.97,15.33805905]
[1739765489059,15.33645905,186.03,185.97,15.33805905]
[1739765489365,15.33645905,186.03,185.97,9.96095905]
[1739765489556,9.96095905,186.02,185.96,15.33835905]
[1739765490170,9.96095905,186.02,185.97,0.03]
[1739765490472,9.96095905,186.03,185.97,9.99095905]
[1739765491048,9.96095905,186.02,185.97,0.03]
[1739765491248,9.96095905,186.0,185.97,0.03]
[1739765491962,9.96095905,186.01,185.97,0.03]
[1739765492159,9.96095905,186.02,185.97,0.03]
[1739765492472,9.96095905,186.03,185.97,0.03]
[1739765493264,136.5,186.07,185.98,9.96095905]
[1739765493265,9.96095905,186.05,185.98,9.96095905]
[1739765493771,30.0,186.06,185.97,0.03]
[1739765493772,9.96095905,186.03,185.97,0.03]
[1739765493941,9.96095905,186.03,185.97,9.99095905]
[1739765494959,9.96095905,186.03,185.97,15.36805905]
[1739765495161,9.96095905,186.03,185.97,9.99095905]
[1739765495364,15.33645905,186.03,185.97,9.99095905]
[1739765495571,9.96095905,186.02,185.97,0.03]
[1739765496375,15.33675905,186.02,185.97,0.03]
[1739765498374,9.96095905,186.02,185.97,0.03]
[1739765498671,29.96095905,186.03,185.97,9.99095905]
[1739765499267,29.96095905,186.03,185.97,0.03]
[1739765499765,5.3757,186.02,185.97,0.03]
[1739765500548,35.33645905,186.03,185.97,0.03]
[1739765503073,15.33645905,186.03,185.97,0.03]
[1739765503258,35.33645905,186.03,185.97,9.99095905]
[1739765506673,5.3755,186.03,185.98,9.96095905]
[1739765506871,9.96095905,186.06,186.0,9.96095905]
[1739765507373,9.96095905,186.05,185.99,9.96095905]
[1739765508075,15.33585905,186.05,185.99,9.96095905]
[1739765509083,15.33585905,186.05,185.99,15.33755905]
[1739765509878,15.33585905,186.05,185.99,9.96095905]
[1739765510079,9.96095905,186.04,185.98,15.33785905]
[1739765510262,15.33615905,186.04,185.98,15.33785905]
[1739765510462,5.3752,186.04,185.99,9.96095905]
[1739765510661,15.33575905,186.06,186.0,9.96095905]
[1739765511061,9.96095905,186.04,185.98,9.96095905]
[1739765511384,9.96095905,186.02,185.97,0.03]
[1739765512577,15.33675905,186.02,185.97,0.03]
[1739765512773,9.96095905,186.02,185.97,0.03]
[1739765513075,15.33635905,186.04,185.97,23.40280758]
[1739765513283,9.96095905,186.04,185.98,23.37280758]
[1739765513576,5.3749,186.05,185.99,9.96095905]
[1739765514082,0.063,186.03,185.99,9.96095905]
[1739765519477,0.063,186.03,185.99,15.33755905]
[1739765520058,0.063,186.03,185.99,9.96095905]
[1739765520673,0.063,186.03,186.0,13.41184853]
[1739765520872,0.063,186.03,186.0,9.96095905]
[1739765522972,0.063,186.03,186.01,9.96095905]
[1739765524701,0.063,186.03,186.02,23.37280758]
[1739765525064,0.063,186.03,186.02,28.74850758]
[1739765530293,0.063,186.03,186.02,76.06194378]
[1739765530477,0.063,186.03,186.02,78.59324378]
[1739765531267,0.063,186.03,186.02,77.59324378]
[1739765531493,0.063,186.03,186.02,78.59324378]
[1739765531993,0.063,186.03,186.02,36.77940758]
[1739765538091,0.063,186.03,186.02,28.74850758]
[1739765540207,0.063,186.03,186.02,18.78754853]
[1739765540406,0.063,186.03,186.01,5.3759]
[1739765540589,0.063,186.03,185.99,91.46095905]
[1739765540801,0.063,186.03,185.99,86.8766]
[1739765541310,0.063,186.03,185.98,23.37280758]
[1739765541613,10.02395905,186.03,185.98,5.3769]
[1739765541815,10.02395905,186.03,185.98,13.41184853]
[1739765543687,9.96095905,186.02,185.97,0.03]
[1739765543895,0.063,186.03,185.97,0.03]
[1739765543896,9.96095905,186.01,185.97,0.03]
[1739765545104,15.33675905,186.02,185.97,0.03]
[1739765546016,10.02395905,186.03,185.97,0.03]
[1739765546322,0.063,186.03,185.98,9.96095905]
[1739765546491,0.063,186.03,185.99,9.96095905]
[1739765547217,15.39945905,186.03,185.97,0.03]
[1739765547520,9.96095905,186.02,185.97,0.03]
[1739765548412,15.39945905,186.03,185.97,0.03]
[1739765549410,9.96095905,186.02,185.97,0.03]
[1739765549614,9.96095905,186.01,185.97,0.03]
[1739765550523,9.96095905,186.02,185.97,0.03]
[1739765551023,9.96095905,186.01,185.97,0.03]
[1739765551594,9.96095905,186.02,185.97,0.03]
[1739765551927,15.39945905,186.03,185.97,0.03]
[1739765552292,0.063,186.03,185.99,9.96095905]
[1739765553101,15.39945905,186.03,185.97,9.99095905]
[1739765556927,15.39945905,186.03,185.97,0.03]
[1739765560618,15.39945905,186.03,185.97,9.99095905]
[1739765561442,5.4385,186.03,185.97,9.99095905]
[1739765562136,5.4385,186.03,185.98,13.41184853]
[1739765562320,0.063,186.03,185.98,23.37280758]
[1739765563332,0.063,186.03,185.99,9.96095905]
[1739765563518,0.063,186.03,186.0,9.96095905]
[1739765563929,0.063,186.03,185.99,9.96095905]
[1739765564846,0.063,186.03,185.98,13.41184853]
[1739765565522,0.063,186.03,185.98,23.37280758]
[1739765566716,0.063,186.03,186.0,9.96095905]
[1739765566913,0.063,186.03,186.01,9.96095905]
[1739765567139,0.063,186.03,186.02,9.96095905]
[1739765567814,0.063,186.03,186.01,9.96095905]
[1739765568739,0.063,186.03,186.02,23.37280758]
[1739765570547,0.063,186.03,186.02,28.74850758]
[1739765578747,0.063,186.03,186.02,29.71850758]
[1739765579639,0.063,186.03,186.02,28.74850758]
[1739765580345,0.063,186.03,186.02,29.71850758]
[1739765582128,0.063,186.03,186.02,112.21850758]
[1739765582951,0.063,186.03,186.02,152.06234378]
[1739765585530,20.83734078,186.1,186.03,13.41184853]
[1739765585741,20.83734078,186.1,186.07,9.96095905]
[1739765586662,20.83734078,186.1,186.06,9.96095905]
[1739765586849,20.83734078,186.1,186.07,13.41184853]
[1739765588359,20.83734078,186.1,186.06,9.96095905]
[1739765588648,20.83734078,186.1,186.07,13.41184853]
[1739765589247,20.83734078,186.1,186.05,9.96095905]
[1739765589554,9.96095905,186.08,186.02,9.96095905]
[1739765589958,9.96095905,186.08,186.03,13.41184853]
[1739765590454,15.33495905,186.08,186.03,13.41184853]
[1739765590655,9.96095905,186.04,185.98,9.96095905]
[1739765590859,9.96095905,186.04,185.98,15.33785905]
[1739765591166,9.96095905,186.06,186.0,9.96095905]
[1739765591458,16.92585905,186.09,186.02,9.96095905]
[1739765592158,11.55215905,186.09,186.03,9.96095905]
[1739765592344,30.79829983,186.1,186.04,9.96095905]
[1739765592651,30.79829983,186.1,186.04,15.33605905]
[1739765594258,36.17169983,186.1,186.04,15.33605905]
[1739765594459,36.17169983,186.1,186.04,9.96095905]
[1739765594661,9.96095905,186.09,186.04,13.41184853]
[1739765595644,15.39765905,186.09,186.02,9.96095905]
[1739765595855,9.96095905,186.08,186.03,13.41184853]
[1739765596237,9.96095905,186.05,185.99,15.33735905]
[1739765596439,9.96095905,186.05,186.0,13.41184853]
[1739765596643,5.4367,186.09,185.98,15.33775905]
[1739765596644,9.96095905,186.04,185.98,15.33775905]
[1739765596851,9.96095905,186.03,185.97,9.99095905]
[1739765597162,9.96095905,186.02,185.97,13.44184853]
[1739765597339,9.96095905,186.03,185.97,23.40280758]
[1739765597837,7.8002,186.07,186.01,9.96095905]
[1739765597838,11.55745905,186.07,186.01,9.96095905]
[1739765598441,151.83495905,186.08,186.02,9.96095905]
[1739765598850,141.874,186.08,186.03,9.96095905]
[1739765599055,5.374,186.08,186.02,9.96095905]
[1739765599248,0.063,186.09,186.04,9.96095905]
[1739765599541,0.063,186.09,186.06,9.96095905]
[1739765599765,0.063,186.09,186.05,13.41184853]
[1739765602543,0.063,186.09,186.06,9.96095905]
[1739765602740,0.063,186.09,186.08,9.96095905]
[1739765603548,0.063,186.09,186.07,9.96095905]
[1739765604075,0.063,186.09,186.06,23.37280758]
[1739765604242,0.063,186.09,186.07,13.41184853]
[1739765604442,9.96095905,186.08,186.0,9.96095905]
[1739765604639,9.96095905,186.07,186.0,9.96095905]
[1739765604860,0.063,186.09,186.03,9.96095905]
[1739765605159,0.063,186.09,186.04,9.96095905]
[1739765605346,10.02395905,186.09,186.03,9.96095905]
[1739765605659,0.063,186.09,186.04,13.41184853]
[1739765606861,15.39775905,186.09,186.03,9.96095905]
[1739765607064,15.39775905,186.09,186.02,9.96095905]
[1739765607852,15.39775905,186.09,186.03,13.41184853]
[1739765608557,9.96095905,186.08,186.03,13.41184853]
[1739765609967,15.39775905,186.09,186.03,13.41184853]
[1739765610877,9.96095905,186.08,186.03,13.41184853]
[1739765611868,9.96095905,186.07,186.01,9.96095905]
[1739765612075,15.33535905,186.07,186.01,9.96095905]
[1739765612246,15.33535905,186.07,186.01,13.41184853]
[1739765613169,9.96095905,186.06,186.01,13.41184853]
[1739765613472,9.96095905,186.05,185.99,11.56235905]
[1739765613652,9.96095905,186.05,185.99,16.93895905]
[1739765615072,9.96095905,186.06,186.0,9.96095905]
[1739765615454,9.96095905,186.07,186.01,9.96095905]
[1739765616275,9.96095905,186.06,186.0,23.37280758]
[1739765616981,9.96095905,186.06,186.0,28.74880758]
[1739765618478,9.96095905,186.06,186.0,28.77880758]
[1739765619758,39.96095905,186.06,186.0,0.03]
[1739765619970,9.96095905,186.03,186.0,0.03]
[1739765621569,9.96095905,186.04,186.0,0.03]
[1739765621758,15.33575905,186.05,186.0,0.03]
[1739765621960,9.96095905,186.05,186.0,0.03]
[1739765622478,9.96095905,186.03,186.0,0.03]
[1739765625580,15.33635905,186.03,186.0,0.03]
[1739765626262,9.96095905,186.03,186.0,0.03]
[1739765628184,9.96095905,186.02,186.0,0.03]
[1739765628384,9.96095905,186.03,186.0,0.03]
[1739765628594,30.0,186.06,186.0,9.99095905]
[1739765628595,9.96095905,186.06,186.0,9.99095905]
[1739765629082,9.96095905,186.05,186.0,0.03]
[1739765629664,9.96095905,186.04,186.0,0.03]
[1739765632890,9.96095905,186.05,186.0,0.03]
[1739765633665,9.96095905,186.06,186.0,0.03]
[1739765635399,9.96095905,186.05,186.0,0.03]
[1739765636690,15.33585905,186.05,186.0,0.03]
[1739765640706,9.96095905,186.03,186.0,0.03]
[1739765642005,9.96095905,186.01,186.0,0.03]
[1739765642181,9.96095905,186.02,186.0,0.03]
[1739765645774,30.0,186.06,186.0,0.03]
[1739765645775,9.96095905,186.01,186.0,0.03]
[1739765652602,9.96095905,186.02,186.0,0.03]
[1739765654903,9.96095905,186.03,186.0,0.03]
[1739765655990,15.33645905,186.03,186.0,0.03]
[1739765657511,9.96095905,186.02,186.0,0.03]
[1739765658413,9.96095905,186.01,186.0,0.03]
[1739765659407,15.33695905,186.01,186.0,0.03]
[1739765663615,9.96095905,186.01,186.0,0.03]
[1739765666308,9.96095905,186.03,186.0,0.03]
[1739765666512,87.6749,186.05,186.0,0.03]
[1739765666698,9.96095905,186.03,186.0,0.03]
[1739765667315,30.0,186.07,186.0,0.03]
[1739765667316,9.96095905,186.02,186.0,0.03]
[1739765669213,9.96095905,186.01,186.0,0.03]
[1739765676316,174.90949472,186.07,186.0,0.03]
[1739765676317,9.96095905,186.02,186.0,0.03]
[1739765676624,9.96095905,186.05,186.0,0.03]